[Event "*** Titled Tuesday 3|2 Blitz"]
[Site "Chess.com"]
[Date "2015.12.01"]
[Round "2"]
[White "dawnrule"]
[Black "Thomaslegend"]
[Result "1-0"]
[WhiteElo "2226"]
[BlackElo "2119"]
[TimeControl "180+2"]
[EndTime "17:22:17 PST"]
[Termination "dawnrule won by checkmate"]

1. e4 {[%clk 0:03:01.9]} 1... e5 {[%clk 0:02:56.5]} 2. Nf3 {[%clk 0:03:03]} 2...
Nc6 {[%clk 0:02:57.6]} 3. Bb5 {[%clk 0:03:04]} 3... a6 {[%clk 0:02:58.6]} 4. Ba4
{[%clk 0:03:04.9]} 4... Nf6 {[%clk 0:03:00.2]} 5. O-O {[%clk 0:03:03.9]} 5...
Be7 {[%clk 0:03:01.5]} 6. Re1 {[%clk 0:03:04]} 6... b5 {[%clk 0:03:03]} 7. Bb3
{[%clk 0:03:05.7]} 7... d6 {[%clk 0:03:04.4]} 8. h3 {[%clk 0:03:06.6]} 8... O-O
{[%clk 0:03:05.4]} 9. c3 {[%clk 0:03:08.1]} 9... Nb8 {[%clk 0:03:06.3]} 10. d4
{[%clk 0:03:09.4]} 10... Nbd7 {[%clk 0:03:05.4]} 11. Nbd2 {[%clk 0:03:07.1]}
11... c5 {[%clk 0:03:04.3]} 12. a4 {[%clk 0:03:05.1]} 12... Bb7 {[%clk
0:03:04.9]} 13. d5 {[%clk 0:03:04.8]} 13... c4 {[%clk 0:03:03]} 14. Bc2 {[%clk
0:03:05.5]} 14... Qc7 {[%clk 0:02:58.5]} 15. Nf1 {[%clk 0:03:06.2]} 15... Nc5
{[%clk 0:02:48.5]} 16. Ng3 {[%clk 0:03:03.1]} 16... g6 {[%clk 0:02:48.9]} 17.
Bh6 {[%clk 0:03:03.1]} 17... Rfe8 {[%clk 0:02:44.8]} 18. h4 {[%clk 0:02:58.6]}
18... Bf8 {[%clk 0:02:35]} 19. Qd2 {[%clk 0:02:57.4]} 19... Nxa4 {[%clk
0:02:02]} 20. Bxa4 {[%clk 0:02:54.4]} 20... bxa4 {[%clk 0:02:03.3]} 21. h5
{[%clk 0:02:55.3]} 21... Bc8 {[%clk 0:02:01.9]} 22. Bxf8 {[%clk 0:02:44.6]}
22... Rxf8 {[%clk 0:02:02.8]} 23. Qg5 {[%clk 0:02:42.2]} 23... Qd8 {[%clk
0:01:55.8]} 24. Rxa4 {[%clk 0:02:30.2]} 24... Nxh5 {[%clk 0:01:36.1]} 25. Qxd8
{[%clk 0:02:27.6]} 25... Rxd8 {[%clk 0:01:37.1]} 26. Nxh5 {[%clk 0:02:26.8]}
26... gxh5 {[%clk 0:01:38.4]} 27. Rxc4 {[%clk 0:02:26.6]} 27... Bd7 {[%clk
0:01:39.6]} 28. Ra1 {[%clk 0:02:22.3]} 28... Rdc8 {[%clk 0:01:33.6]} 29. Nd2
{[%clk 0:02:20]} 29... Bb5 {[%clk 0:01:30.1]} 30. Rb4 {[%clk 0:02:03]} 30... Bd3
{[%clk 0:01:16.6]} 31. Ra3 {[%clk 0:01:56.1]} 31... f5 {[%clk 0:01:10.5]} 32.
exf5 {[%clk 0:01:53.1]} 32... Bxf5 {[%clk 0:01:10.8]} 33. Rb6 {[%clk 0:01:53.9]}
33... Rab8 {[%clk 0:00:56]} 34. Raxa6 {[%clk 0:01:47.9]} 34... Rxb6 {[%clk
0:00:50.3]} 35. Rxb6 {[%clk 0:01:47.4]} 35... Rd8 {[%clk 0:00:51.6]} 36. Nc4
{[%clk 0:01:36.3]} 36... Be4 {[%clk 0:00:47.9]} 37. Rxd6 {[%clk 0:01:33.2]}
37... Rxd6 {[%clk 0:00:43.6]} 38. Nxd6 {[%clk 0:01:35.1]} 38... Bxd5 {[%clk
0:00:45.2]} 39. c4 {[%clk 0:01:35.2]} 39... Be6 {[%clk 0:00:34.8]} 40. b4 {[%clk
0:01:31.6]} 40... Kf8 {[%clk 0:00:35]} 41. c5 {[%clk 0:01:27.7]} 41... Ke7
{[%clk 0:00:31.8]} 42. f3 {[%clk 0:01:25.6]} 42... Bd5 {[%clk 0:00:22.3]} 43.
Kf2 {[%clk 0:01:25.4]} 43... Kd7 {[%clk 0:00:21.1]} 44. Ke3 {[%clk 0:01:25.7]}
44... Kc6 {[%clk 0:00:20.3]} 45. g3 {[%clk 0:01:24.4]} 45... h6 {[%clk 0:00:16]}
46. f4 {[%clk 0:01:21.1]} 46... exf4+ {[%clk 0:00:14.5]} 47. Kxf4 {[%clk
0:01:20.7]} 47... Be6 {[%clk 0:00:14.3]} 48. Ke5 {[%clk 0:01:19.3]} 48... Bg4
{[%clk 0:00:12.7]} 49. Kd4 {[%clk 0:01:17.5]} 49... Be2 {[%clk 0:00:12.2]} 50.
b5+ {[%clk 0:01:17.4]} 50... Kd7 {[%clk 0:00:10.9]} 51. Nc4 {[%clk 0:01:08.4]}
51... Bf1 {[%clk 0:00:08.1]} 52. c6+ {[%clk 0:01:05.4]} 52... Kc7 {[%clk
0:00:08.9]} 53. Kc5 {[%clk 0:01:06.6]} 53... Bg2 {[%clk 0:00:08.1]} 54. b6+
{[%clk 0:01:07.1]} 54... Kb8 {[%clk 0:00:08.8]} 55. c7+ {[%clk 0:01:08.1]} 55...
Kc8 {[%clk 0:00:09.8]} 56. Nd6+ {[%clk 0:01:09.1]} 56... Kd7 {[%clk 0:00:11]}
57. c8=Q+ {[%clk 0:01:01.9]} 57... Ke7 {[%clk 0:00:10.8]} 58. Qe8+ {[%clk
0:01:02.8]} 58... Kf6 {[%clk 0:00:11.9]} 59. Qf7+ {[%clk 0:01:03.1]} 59... Kg5
{[%clk 0:00:10.4]} 60. Qf4+ {[%clk 0:01:05]} 60... Kg6 {[%clk 0:00:09.9]} 61.
Qf5+ {[%clk 0:01:06.3]} 61... Kg7 {[%clk 0:00:11.2]} 62. Qf7+ {[%clk 0:01:05.1]}
62... Kh8 {[%clk 0:00:12.4]} 63. Nf5 {[%clk 0:01:05]} 63... Be4 {[%clk 0:00:13]}
64. Qg7# {[%clk 0:01:06.9]} 1-0

[Event "*** Titled Tuesday 3|2 Blitz"]
[Site "Chess.com"]
[Date "2015.12.01"]
[Round "2"]
[White "JustKid"]
[Black "Po6Don"]
[Result "1-0"]
[WhiteElo "2110"]
[BlackElo "1970"]
[TimeControl "180+2"]
[EndTime "17:22:55 PST"]
[Termination "JustKid won by checkmate"]

1. e4 {[%clk 0:03:01.4]} 1... e5 {[%clk 0:02:58]} 2. Nf3 {[%clk 0:03:02.1]} 2...
Nc6 {[%clk 0:02:59.2]} 3. Bb5 {[%clk 0:03:02.9]} 3... Nd4 {[%clk 0:02:59.3]} 4.
Nxd4 {[%clk 0:03:00.4]} 4... exd4 {[%clk 0:03:01.2]} 5. c3 {[%clk 0:02:58.5]}
5... Qg5 {[%clk 0:03:01.5]} 6. Bf1 {[%clk 0:02:55.9]} 6... Bc5 {[%clk
0:02:58.4]} 7. d3 {[%clk 0:02:37.1]} 7... Qf6 {[%clk 0:02:58.5]} 8. c4 {[%clk
0:02:34.5]} 8... d6 {[%clk 0:02:52.4]} 9. a3 {[%clk 0:02:32.2]} 9... a5 {[%clk
0:02:52.2]} 10. g3 {[%clk 0:02:29.9]} 10... h5 {[%clk 0:02:48.7]} 11. h3 {[%clk
0:02:26.9]} 11... Ne7 {[%clk 0:02:45.6]} 12. Bg2 {[%clk 0:02:23.6]} 12... h4
{[%clk 0:02:44.7]} 13. O-O {[%clk 0:02:20.4]} 13... Ng6 {[%clk 0:02:28.1]} 14.
g4 {[%clk 0:01:56.1]} 14... Nf4 {[%clk 0:02:22.3]} 15. Qf3 {[%clk 0:01:54]}
15... g5 {[%clk 0:02:13]} 16. Bxf4 {[%clk 0:01:42.5]} 16... gxf4 {[%clk
0:02:04.7]} 17. Nd2 {[%clk 0:01:43.6]} 17... Qe5 {[%clk 0:01:49]} 18. Qe2 {[%clk
0:01:37.9]} 18... f6 {[%clk 0:01:41]} 19. Nf3 {[%clk 0:01:38.9]} 19... Qe7
{[%clk 0:01:40]} 20. Qd2 {[%clk 0:01:40.3]} 20... Bd7 {[%clk 0:01:29.8]} 21. b4
{[%clk 0:01:34.1]} 21... Bb6 {[%clk 0:01:24.7]} 22. Qxf4 {[%clk 0:01:32]} 22...
O-O-O {[%clk 0:01:12]} 23. Rfc1 {[%clk 0:01:21.5]} 23... Rdg8 {[%clk 0:01:09.9]}
24. c5 {[%clk 0:01:15.7]} 24... dxc5 {[%clk 0:01:07.6]} 25. bxc5 {[%clk
0:01:16.7]} 25... Bxc5 {[%clk 0:01:00.7]} 26. Nxd4 {[%clk 0:01:17.8]} 26... Bd6
{[%clk 0:00:49.3]} 27. Qf3 {[%clk 0:01:13.4]} 27... Qe5 {[%clk 0:00:42.7]} 28.
Nf5 {[%clk 0:01:08.8]} 28... Qh2+ {[%clk 0:00:36.4]} 29. Kf1 {[%clk 0:01:09.6]}
29... Bxf5 {[%clk 0:00:30]} 30. exf5 {[%clk 0:01:05.4]} 30... c6 {[%clk
0:00:23]} 31. Rab1 {[%clk 0:00:54.2]} 31... Qf4 {[%clk 0:00:14.4]} 32. Qe2
{[%clk 0:00:43.3]} 32... Re8 {[%clk 0:00:11.9]} 33. Qb2 {[%clk 0:00:42.8]} 33...
Re7 {[%clk 0:00:10.1]} 34. Qxf6 {[%clk 0:00:36.3]} 34... Rhe8 {[%clk 0:00:09.6]}
35. Rc2 {[%clk 0:00:24.7]} 35... Qe5 {[%clk 0:00:04.6]} 36. Qxe5 {[%clk
0:00:22.5]} 36... Rxe5 {[%clk 0:00:06.5]} 37. Bf3 {[%clk 0:00:19.7]} 37... Bxa3
{[%clk 0:00:06.7]} 38. Kg2 {[%clk 0:00:16.9]} 38... Be7 {[%clk 0:00:06.4]} 39.
Be4 {[%clk 0:00:17.6]} 39... Bg5 {[%clk 0:00:06.7]} 40. Rf1 {[%clk 0:00:17.1]}
40... Rb5 {[%clk 0:00:04.9]} 41. f4 {[%clk 0:00:18]} 41... Be7 {[%clk
0:00:05.2]} 42. g5 {[%clk 0:00:19.3]} 42... Rg8 {[%clk 0:00:05.8]} 43. Kf3
{[%clk 0:00:20.1]} 43... a4 {[%clk 0:00:06.9]} 44. f6 {[%clk 0:00:21.2]} 44...
Bd8 {[%clk 0:00:05.3]} 45. f7 {[%clk 0:00:19.9]} 45... Rf8 {[%clk 0:00:04.9]}
46. g6 {[%clk 0:00:21.6]} 46... Bf6 {[%clk 0:00:06]} 47. Rg1 {[%clk 0:00:20.7]}
47... Bg7 {[%clk 0:00:06.3]} 48. f5 {[%clk 0:00:19.4]} 48... a3 {[%clk
0:00:06.1]} 49. Ra2 {[%clk 0:00:19.1]} 49... Ra5 {[%clk 0:00:05.6]} 50. f6
{[%clk 0:00:19.8]} 50... Bxf6 {[%clk 0:00:06.4]} 51. g7 {[%clk 0:00:21.4]} 51...
Bxg7 {[%clk 0:00:05.8]} 52. Rxg7 {[%clk 0:00:23.3]} 52... Kc7 {[%clk 0:00:06.2]}
53. Bg6 {[%clk 0:00:22.6]} 53... Rg5 {[%clk 0:00:03.4]} 54. Rg8 {[%clk
0:00:22.4]} 54... Rg3+ {[%clk 0:00:04.8]} 55. Ke4 {[%clk 0:00:23]} 55... Rxg6
{[%clk 0:00:03]} 56. Rxf8 {[%clk 0:00:22]} 56... Re6+ {[%clk 0:00:02.1]} 57. Kf5
{[%clk 0:00:22.8]} 57... Re7 {[%clk 0:00:03.6]} 58. Rc8+ {[%clk 0:00:22.6]}
58... Kxc8 {[%clk 0:00:04.1]} 59. f8=Q+ {[%clk 0:00:24.2]} 59... Kd7 {[%clk
0:00:06]} 60. Rxa3 {[%clk 0:00:25.6]} 60... Kc7 {[%clk 0:00:07.1]} 61. Qxe7+
{[%clk 0:00:26.5]} 61... Kb6 {[%clk 0:00:08.6]} 62. Rb3+ {[%clk 0:00:27.9]}
62... Ka5 {[%clk 0:00:09.7]} 63. Qxb7 {[%clk 0:00:28.1]} 63... c5 {[%clk
0:00:11.5]} 64. Qb5# {[%clk 0:00:29.2]} 1-0

[Event "*** Titled Tuesday 3|2 Blitz"]
[Site "Chess.com"]
[Date "2015.12.01"]
[Round "2"]
[White "jcibarra"]
[Black "E-Shaposhnikov"]
[Result "1-0"]
[WhiteElo "2516"]
[BlackElo "2492"]
[TimeControl "180+2"]
[EndTime "17:23:32 PST"]
[Termination "jcibarra won on time"]

1. e4 {[%clk 0:03:01.9]} 1... c5 {[%clk 0:01:47.4]} 2. b3 {[%clk 0:03:01.9]}
2... Nf6 {[%clk 0:01:43.2]} 3. e5 {[%clk 0:03:01.5]} 3... Nd5 {[%clk 0:01:44.2]}
4. Bb2 {[%clk 0:03:01.4]} 4... g6 {[%clk 0:01:45.2]} 5. Nf3 {[%clk 0:02:54.5]}
5... Bg7 {[%clk 0:01:45.4]} 6. d4 {[%clk 0:02:56.1]} 6... cxd4 {[%clk
0:01:41.2]} 7. Qxd4 {[%clk 0:02:57.1]} 7... e6 {[%clk 0:01:28.6]} 8. c4 {[%clk
0:02:46.8]} 8... Nc6 {[%clk 0:01:22.2]} 9. Qd2 {[%clk 0:02:46.4]} 9... Nde7
{[%clk 0:01:09.7]} 10. Na3 {[%clk 0:02:44.9]} 10... Nf5 {[%clk 0:00:54.2]} 11.
c5 {[%clk 0:02:35.6]} 11... O-O {[%clk 0:00:50.2]} 12. Nc4 {[%clk 0:02:35.9]}
12... b6 {[%clk 0:00:46.1]} 13. cxb6 {[%clk 0:02:14.4]} 13... axb6 {[%clk
0:00:47]} 14. Bd3 {[%clk 0:02:07]} 14... b5 {[%clk 0:00:42]} 15. Nd6 {[%clk
0:02:05.3]} 15... Nxe5 {[%clk 0:00:31.8]} 16. Nxe5 {[%clk 0:01:31.6]} 16... Nxd6
{[%clk 0:00:31.7]} 17. O-O {[%clk 0:01:30.3]} 17... Bb7 {[%clk 0:00:29.4]} 18.
Rfe1 {[%clk 0:01:27.6]} 18... Nf5 {[%clk 0:00:19.6]} 19. Bxb5 {[%clk 0:01:22.7]}
19... d6 {[%clk 0:00:19.2]} 20. Ng4 {[%clk 0:01:09.8]} 20... Qh4 {[%clk
0:00:11.5]} 21. h3 {[%clk 0:01:06.3]} 21... h5 {[%clk 0:00:11]} 22. Nh2 {[%clk
0:00:43.6]} 22... Bxb2 {[%clk 0:00:10.9]} 23. Qxb2 {[%clk 0:00:45.5]} 23... Qg5
{[%clk 0:00:11.8]} 24. Bf1 {[%clk 0:00:47.1]} 24... Nh4 {[%clk 0:00:12.7]} 25.
Qc1 {[%clk 0:00:45.1]} 25... Qxc1 {[%clk 0:00:11.7]} 26. Rexc1 {[%clk 0:00:47]}
26... Rfc8 {[%clk 0:00:12.7]} 27. a4 {[%clk 0:00:46.9]} 27... Nf5 {[%clk
0:00:12.6]} 28. Rd1 {[%clk 0:00:37.6]} 28... Bd5 {[%clk 0:00:12.3]} 29. Rdb1
{[%clk 0:00:32.7]} 29... Nd4 {[%clk 0:00:12.6]} 30. b4 {[%clk 0:00:33.3]} 30...
Nc2 {[%clk 0:00:13.7]} 31. a5 {[%clk 0:00:30.4]} 31... Nxa1 {[%clk 0:00:14.3]}
32. Rxa1 {[%clk 0:00:32.3]} 32... Rcb8 {[%clk 0:00:14.4]} 33. b5 {[%clk
0:00:32.7]} 33... Kg7 {[%clk 0:00:11.8]} 34. Nf3 {[%clk 0:00:29.6]} 34... Bxf3
{[%clk 0:00:12.6]} 35. gxf3 {[%clk 0:00:31.1]} 35... d5 {[%clk 0:00:14.5]} 36.
Bd3 {[%clk 0:00:28.6]} 36... Kf6 {[%clk 0:00:15.5]} 37. a6 {[%clk 0:00:24.3]}
37... Ke5 {[%clk 0:00:14.6]} 38. Rc1 {[%clk 0:00:24.1]} 38... Ra7 {[%clk
0:00:12]} 39. Rc6 {[%clk 0:00:24.9]} 39... Kd4 {[%clk 0:00:13.1]} 40. Bf1 {[%clk
0:00:24.1]} 40... Raa8 {[%clk 0:00:08.7]} 41. b6 {[%clk 0:00:24.3]} 41... Ke5
{[%clk 0:00:09.5]} 42. b7 {[%clk 0:00:16.8]} 42... Ra7 {[%clk 0:00:10.3]} 43.
Rc8 {[%clk 0:00:14.8]} 43... Rbxb7 {[%clk 0:00:11.5]} 44. axb7 {[%clk
0:00:16.7]} 44... Rxb7 {[%clk 0:00:13.1]} 45. Rc1 {[%clk 0:00:18.2]} 45... Rb2
{[%clk 0:00:13]} 46. Kg2 {[%clk 0:00:18.6]} 46... Kf6 {[%clk 0:00:13.5]} 47. Rd1
{[%clk 0:00:19.6]} 47... h4 {[%clk 0:00:14.7]} 48. Rd4 {[%clk 0:00:19.5]} 48...
Kg5 {[%clk 0:00:14.3]} 49. Rg4+ {[%clk 0:00:19.5]} 49... Kh5 {[%clk 0:00:14.9]}
50. f4 {[%clk 0:00:20.3]} 50... f5 {[%clk 0:00:14.6]} 51. Rg5+ {[%clk
0:00:19.9]} 51... Kh6 {[%clk 0:00:16.3]} 52. Ba6 {[%clk 0:00:19.3]} 52... Rb8
{[%clk 0:00:14.6]} 53. Kh2 {[%clk 0:00:16.5]} 53... Rb4 {[%clk 0:00:14.5]} 54.
Bc8 {[%clk 0:00:15.8]} 54... Rxf4 {[%clk 0:00:15.2]} 55. Rg2 {[%clk 0:00:17.4]}
55... Re4 {[%clk 0:00:15.2]} 56. Bd7 {[%clk 0:00:18.5]} 56... g5 {[%clk
0:00:16.7]} 57. Rg1 {[%clk 0:00:18.5]} 57... Kg6 {[%clk 0:00:16]} 58. Rc1 {[%clk
0:00:19.3]} 58... Kf6 {[%clk 0:00:17.4]} 59. Kg2 {[%clk 0:00:20.6]} 59... g4
{[%clk 0:00:18]} 60. hxg4 {[%clk 0:00:21.3]} 60... Rxg4+ {[%clk 0:00:19.6]} 61.
Kh2 {[%clk 0:00:22]} 61... Rf4 {[%clk 0:00:20.5]} 62. Kg2 {[%clk 0:00:23.5]}
62... Ke7 {[%clk 0:00:14.1]} 63. Bc8 {[%clk 0:00:23.9]} 1-0

[Event "*** Titled Tuesday 3|2 Blitz"]
[Site "Chess.com"]
[Date "2015.12.01"]
[Round "2"]
[White "pKiLz5Rn9b"]
[Black "HansCoolNiemann"]
[Result "0-1"]
[WhiteElo "2438"]
[BlackElo "2187"]
[TimeControl "180+2"]
[EndTime "17:24:40 PST"]
[Termination "HansCoolNiemann won by resignation"]

1. d4 {[%clk 0:03:01.9]} 1... Nf6 {[%clk 0:03:00.6]} 2. c4 {[%clk 0:03:03.1]}
2... g6 {[%clk 0:03:01.9]} 3. Nc3 {[%clk 0:03:03.8]} 3... c5 {[%clk 0:02:59.7]}
4. d5 {[%clk 0:03:02.9]} 4... e6 {[%clk 0:03:01.2]} 5. e4 {[%clk 0:03:03.7]}
5... exd5 {[%clk 0:03:01.6]} 6. exd5 {[%clk 0:03:03.6]} 6... d6 {[%clk
0:03:02.7]} 7. h3 {[%clk 0:03:04.4]} 7... Bg7 {[%clk 0:03:03.1]} 8. Bd3 {[%clk
0:03:05.8]} 8... O-O {[%clk 0:03:04.3]} 9. Nge2 {[%clk 0:03:07.1]} 9... Re8
{[%clk 0:03:05.8]} 10. O-O {[%clk 0:03:08.1]} 10... Nbd7 {[%clk 0:03:06.7]} 11.
Bf4 {[%clk 0:03:08.3]} 11... Ne5 {[%clk 0:03:06.4]} 12. Re1 {[%clk 0:03:05.1]}
12... Nxd3 {[%clk 0:03:05.8]} 13. Qxd3 {[%clk 0:03:05.7]} 13... Bf5 {[%clk
0:03:07.3]} 14. Qd2 {[%clk 0:03:05.1]} 14... a6 {[%clk 0:03:06.8]} 15. Ng3
{[%clk 0:03:05.5]} 15... Bc8 {[%clk 0:02:58.2]} 16. Rxe8+ {[%clk 0:03:01]} 16...
Nxe8 {[%clk 0:02:57.5]} 17. Re1 {[%clk 0:03:01.4]} 17... Bd7 {[%clk 0:02:58]}
18. Nce4 {[%clk 0:02:58.9]} 18... Bf8 {[%clk 0:02:57.7]} 19. Bg5 {[%clk
0:02:52.4]} 19... f6 {[%clk 0:02:57.8]} 20. Bh6 {[%clk 0:02:50]} 20... Ng7
{[%clk 0:02:44.4]} 21. Qf4 {[%clk 0:02:43.2]} 21... Nh5 {[%clk 0:02:42.2]} 22.
Qd2 {[%clk 0:02:39.7]} 22... Nxg3 {[%clk 0:02:23.3]} 23. Nxg3 {[%clk 0:02:37.8]}
23... Bxh6 {[%clk 0:02:13.8]} 24. Qxh6 {[%clk 0:02:38.3]} 24... Qf8 {[%clk
0:02:12.6]} 25. Qf4 {[%clk 0:02:39.1]} 25... f5 {[%clk 0:02:10.5]} 26. h4 {[%clk
0:02:35]} 26... Re8 {[%clk 0:02:07.5]} 27. Rxe8 {[%clk 0:02:35.3]} 27... Bxe8
{[%clk 0:02:09.4]} 28. h5 {[%clk 0:02:35.3]} 28... Qe7 {[%clk 0:02:07.5]} 29.
hxg6 {[%clk 0:02:27.5]} 29... hxg6 {[%clk 0:02:09.4]} 30. Kf1 {[%clk 0:02:22.7]}
30... b5 {[%clk 0:02:09.2]} 31. b3 {[%clk 0:02:18.3]} 31... bxc4 {[%clk
0:02:08.7]} 32. bxc4 {[%clk 0:02:20.2]} 32... Ba4 {[%clk 0:02:09.6]} 33. Qd2
{[%clk 0:02:15.8]} 33... Qh4 {[%clk 0:01:52.1]} 34. Qd3 {[%clk 0:01:52.9]} 34...
Bd7 {[%clk 0:01:42.3]} 35. Ke1 {[%clk 0:01:44.7]} 35... Qf6 {[%clk 0:01:18.8]}
36. Qd2 {[%clk 0:01:33.2]} 36... f4 {[%clk 0:00:38.2]} 37. Ne2 {[%clk
0:01:22.8]} 37... g5 {[%clk 0:00:38.2]} 38. Qc3 {[%clk 0:01:21.7]} 38... Qf5
{[%clk 0:00:35]} 39. Qb3 {[%clk 0:01:13.6]} 39... Be8 {[%clk 0:00:26.8]} 40. f3
{[%clk 0:01:11.3]} 40... Qe5 {[%clk 0:00:13]} 41. Kd2 {[%clk 0:00:55.6]} 41...
Bg6 {[%clk 0:00:12.6]} 42. Qb8+ {[%clk 0:00:53.4]} 42... Kg7 {[%clk 0:00:12.6]}
43. Qb7+ {[%clk 0:00:54.9]} 43... Kh6 {[%clk 0:00:13.2]} 44. Qb3 {[%clk
0:00:51.3]} 44... Qa1 {[%clk 0:00:09.1]} 45. a3 {[%clk 0:00:46.1]} 45... Qe5
{[%clk 0:00:06.7]} 46. Qc3 {[%clk 0:00:34.6]} 46... Qf5 {[%clk 0:00:07.1]} 47.
Qh8+ {[%clk 0:00:28.8]} 47... Bh7 {[%clk 0:00:07.7]} 48. Qd8 {[%clk 0:00:29.3]}
48... Qe5 {[%clk 0:00:04]} 49. Qf8+ {[%clk 0:00:29.2]} 49... Kh5 {[%clk
0:00:03.9]} 50. Qf7+ {[%clk 0:00:25.6]} 50... Bg6 {[%clk 0:00:04.9]} 51. Qb7
{[%clk 0:00:25.3]} 51... Qe3+ {[%clk 0:00:04.6]} 52. Kd1 {[%clk 0:00:26.9]}
52... Qd3+ {[%clk 0:00:03.7]} 53. Ke1 {[%clk 0:00:27.5]} 53... Qb1+ {[%clk
0:00:04.7]} 54. Qxb1 {[%clk 0:00:25.7]} 54... Bxb1 {[%clk 0:00:06.6]} 55. Kd2
{[%clk 0:00:27.6]} 55... Kg6 {[%clk 0:00:07.7]} 56. Nc3 {[%clk 0:00:28.6]} 56...
Bf5 {[%clk 0:00:08.4]} 57. Na4 {[%clk 0:00:30]} 57... Kf6 {[%clk 0:00:09.3]} 58.
Nb2 {[%clk 0:00:27.6]} 58... Ke5 {[%clk 0:00:10.5]} 59. Kc3 {[%clk 0:00:29.2]}
59... g4 {[%clk 0:00:09.2]} 60. fxg4 {[%clk 0:00:25.4]} 60... Bxg4 {[%clk
0:00:11.1]} 61. Nd3+ {[%clk 0:00:27.1]} 61... Ke4 {[%clk 0:00:11.7]} 62. Nf2+
{[%clk 0:00:27.9]} 62... Kf5 {[%clk 0:00:12.4]} 63. Kd3 {[%clk 0:00:28]} 63...
Bh5 {[%clk 0:00:09.7]} 64. Kc3 {[%clk 0:00:25.4]} 64... Ke5 {[%clk 0:00:09.7]}
65. a4 {[%clk 0:00:21.4]} 65... Bg6 {[%clk 0:00:10.3]} 66. a5 {[%clk 0:00:21.6]}
66... Be4 {[%clk 0:00:10.8]} 67. Ng4+ {[%clk 0:00:09.2]} 67... Kf5 {[%clk
0:00:11.2]} 68. Nh6+ {[%clk 0:00:10.8]} 68... Kg6 {[%clk 0:00:12.2]} 69. Ng4
{[%clk 0:00:12.4]} 69... Kg5 {[%clk 0:00:12.6]} 70. Nf2 {[%clk 0:00:10.9]} 70...
Bxg2 {[%clk 0:00:13.9]} 71. Kd3 {[%clk 0:00:12.8]} 71... Kf5 {[%clk 0:00:14.5]}
72. Nd1 {[%clk 0:00:11.7]} 72... Be4+ {[%clk 0:00:15]} 73. Kc3 {[%clk
0:00:13.3]} 73... Ke5 {[%clk 0:00:16.5]} 74. Nf2 {[%clk 0:00:14.4]} 74... Bf5
{[%clk 0:00:17.9]} 75. Nd1 {[%clk 0:00:15.7]} 75... f3 {[%clk 0:00:18.2]} 76.
Kd2 {[%clk 0:00:16.8]} 76... Kd4 {[%clk 0:00:18.3]} 77. Ne3 {[%clk 0:00:18.7]}
77... Be4 {[%clk 0:00:19.1]} 78. Ng4 {[%clk 0:00:17.1]} 78... Kxc4 {[%clk
0:00:17.8]} 79. Ke3 {[%clk 0:00:19]} 79... Bxd5 {[%clk 0:00:16.5]} 80. Nf6
{[%clk 0:00:20.9]} 80... Bc6 {[%clk 0:00:16.3]} 81. Ne8 {[%clk 0:00:22.8]} 81...
Bxe8 {[%clk 0:00:14.4]} 0-1

[Event "*** Titled Tuesday 3|2 Blitz"]
[Site "Chess.com"]
[Date "2015.12.01"]
[Round "3"]
[White "Konavets"]
[Black "MMSANCHEZ"]
[Result "0-1"]
[WhiteElo "2504"]
[BlackElo "2332"]
[TimeControl "180+2"]
[EndTime "17:32:55 PST"]
[Termination "MMSANCHEZ won by checkmate"]

1. e4 {[%clk 0:03:01.9]} 1... e6 {[%clk 0:03:00.9]} 2. d4 {[%clk 0:03:02.9]}
2... d5 {[%clk 0:03:02.5]} 3. Nc3 {[%clk 0:03:04.4]} 3... Bb4 {[%clk 0:03:03.4]}
4. e5 {[%clk 0:03:05.7]} 4... c5 {[%clk 0:03:04.4]} 5. a3 {[%clk 0:03:06.4]}
5... Bxc3+ {[%clk 0:03:04.9]} 6. bxc3 {[%clk 0:03:08.3]} 6... Ne7 {[%clk
0:03:04.8]} 7. Qg4 {[%clk 0:03:09.6]} 7... Qc7 {[%clk 0:03:05.1]} 8. Qxg7 {[%clk
0:03:10.2]} 8... Rg8 {[%clk 0:03:05.9]} 9. Qxh7 {[%clk 0:03:11.7]} 9... cxd4
{[%clk 0:03:07.2]} 10. Kd1 {[%clk 0:03:13.3]} 10... dxc3 {[%clk 0:03:02.4]} 11.
Nf3 {[%clk 0:03:14.1]} 11... Nbc6 {[%clk 0:03:03.1]} 12. Bf4 {[%clk 0:03:15.5]}
12... Bd7 {[%clk 0:02:50]} 13. Bd3 {[%clk 0:03:16.3]} 13... O-O-O {[%clk
0:02:47.2]} 14. Bg3 {[%clk 0:03:17.4]} 14... Nf5 {[%clk 0:02:33.1]} 15. Bxf5
{[%clk 0:03:17]} 15... exf5 {[%clk 0:02:34.1]} 16. e6 {[%clk 0:03:18.3]} 16...
f4 {[%clk 0:02:22.3]} 17. exd7+ {[%clk 0:03:19.2]} 17... Qxd7 {[%clk 0:02:23.5]}
18. Bh4 {[%clk 0:03:16.9]} 18... Rde8 {[%clk 0:02:24]} 19. Rg1 {[%clk
0:02:58.6]} 19... Qg4 {[%clk 0:02:22.5]} 20. Qd3 {[%clk 0:02:52.5]} 20... Ne5
{[%clk 0:02:17.4]} 21. Qxc3+ {[%clk 0:02:52.5]} 21... Kb8 {[%clk 0:02:16.8]} 22.
Bd8 {[%clk 0:02:35.8]} 22... Nxf3 {[%clk 0:02:06.2]} 23. Qc7+ {[%clk 0:02:33]}
23... Ka8 {[%clk 0:02:07.2]} 24. Rb1 {[%clk 0:02:33.6]} 24... Nxg1+ {[%clk
0:01:27]} 25. f3 {[%clk 0:02:34.5]} 25... Re1+ {[%clk 0:00:59]} 26. Kxe1 {[%clk
0:02:29.1]} 26... Qe6+ {[%clk 0:00:59.7]} 27. Kf1 {[%clk 0:02:30]} 27... Qe2+
{[%clk 0:00:59]} 28. Kxg1 {[%clk 0:02:31.1]} 28... Qxg2# {[%clk 0:01:00]} 0-1

[Event "*** Titled Tuesday 3|2 Blitz"]
[Site "Chess.com"]
[Date "2015.12.01"]
[Round "3"]
[White "wonderfultime"]
[Black "DanielNaroditsky"]
[Result "0-1"]
[WhiteElo "2639"]
[BlackElo "2540"]
[TimeControl "180+2"]
[EndTime "17:33:50 PST"]
[Termination "DanielNaroditsky won by resignation"]

1. d4 {[%clk 0:03:01.9]} 1... Nf6 {[%clk 0:03:00.8]} 2. c4 {[%clk 0:03:02.7]}
2... e6 {[%clk 0:03:02.2]} 3. Nf3 {[%clk 0:03:03.6]} 3... d5 {[%clk 0:03:03.4]}
4. Nc3 {[%clk 0:03:04.4]} 4... Bb4 {[%clk 0:03:05]} 5. Bg5 {[%clk 0:03:04.7]}
5... h6 {[%clk 0:03:02.3]} 6. Bxf6 {[%clk 0:02:59.8]} 6... Qxf6 {[%clk 0:03:03]}
7. e3 {[%clk 0:03:01.7]} 7... O-O {[%clk 0:03:03]} 8. Be2 {[%clk 0:03:01.8]}
8... dxc4 {[%clk 0:03:03.4]} 9. O-O {[%clk 0:03:01.3]} 9... Bxc3 {[%clk
0:02:50.1]} 10. bxc3 {[%clk 0:03:01.6]} 10... b5 {[%clk 0:02:50.8]} 11. a4
{[%clk 0:02:51.1]} 11... c6 {[%clk 0:02:51.3]} 12. Qb1 {[%clk 0:02:51.7]} 12...
a6 {[%clk 0:02:48.9]} 13. Ne5 {[%clk 0:02:46.6]} 13... Ra7 {[%clk 0:02:21]} 14.
Nxc4 {[%clk 0:02:35.8]} 14... Nd7 {[%clk 0:01:38.4]} 15. axb5 {[%clk 0:02:19.1]}
15... cxb5 {[%clk 0:01:39.2]} 16. Nd6 {[%clk 0:02:20.5]} 16... e5 {[%clk
0:01:32.4]} 17. Ne4 {[%clk 0:01:05.9]} 17... Qb6 {[%clk 0:01:20.8]} 18. Qxb5
{[%clk 0:01:06.7]} 18... axb5 {[%clk 0:01:21.2]} 0-1